[Event "Velammal AICF Women GM 2024"]
[Site "Chennai"]
[Date "2024.03.23"]
[Round "8.1"]
[White "Bommini Mounika Akshaya"]
[Black "Uuriintuya, Uurtsaikh"]
[Result "1-0"]
[ECO "E94"]
[WhiteElo "2134"]
[BlackElo "2288"]
[Annotator "RC"]
[PlyCount "89"]
[EventDate "2024.03.18"]
[EventType "tourn"]
[EventCountry "IND"]
[SourceTitle "playchess.com"]
[Source "ChessBase"]
[SourceQuality "1"]
[TimeControl "5400+30"]

1. d4 {[%emt 0:00:44]} Nf6 {[%emt 0:00:44]} 2. c4 {[%emt 0:00:17]} g6 {[%emt 0:00:13]} 3. Nc3 {[%emt 0:00:10]} Bg7 {[%emt 0:00:03]} 4. e4 {[%emt 0:00:27]} d6 {[%emt 0:00:07]} 5. Be2 {[%emt 0:00:06]} O-O {[%emt 0:00:22]} 6. Nf3 {[%emt 0:00:40]} Na6 {[%emt 0:00:36]} 7. Be3 {[%emt 0:00:15]} e5 {[%emt 0:00:46]} 8. O-O {[%emt 0:00:23]} Ng4 {[%emt 0:00:23]} 9. Bg5 {[%emt 0:00:17]} Qe8 {[%emt 0:00:44]} 10. Rc1 {[%emt 0:00:20]} h6 {[%emt 0:03:42]} 11. Bh4 {[%emt 0:12:28]} exd4 {[%emt 0:02:14]} 12. Nxd4 {[%emt 0:02:01]} Nxh2 {[%emt 0:02:21]} 13. Re1 {[%emt 0:01:55]} Ng4 {[%emt 0:00:37]} 14. Bxg4 {[%emt 0:03:20]} Bxg4 {[%emt 0:00:28]} 15. Qxg4 {[%emt 0:01:51]} Bxd4 {[%emt 0:00:03]} 16. e5 {[%emt 0:09:30]} dxe5 {[%emt 0:14:15]} 17. Nd5 {[%emt 0:02:33]} Qe6 {[%emt 0:06:28]} 18. Nf6+ {[%emt 0:09:17]} Kh8 {[%emt 0:00:21]} 19. Qf3 {[%emt 0:05:44]} Bxb2 {[%emt 0:19:39]} 20. Rb1 {[%emt 0:03:40]} Bd4 {[%emt 0:00:11]} 21. Rxb7 {[%emt 0:06:14]} Rab8 {[%emt 0:02:40]} 22. Rxb8 {[%emt 0:03:44]} Rxb8 {[%emt 0:03:17]} 23. Ng4 {[%emt 0:01:09]} f5 {[%emt 0:02:06]} 24. Nxe5 {[%emt 0:04:55]} Bxe5 {[%emt 0:00:38]} 25. Bg3 {[%emt 0:00:12]} Nc5 {[%emt 0:19:14]} 26. Rxe5 {[%emt 0:03:58]} Qxc4 {[%emt 0:05:03]} 27. Qe3 {[%emt 0:08:50]} f4 {[%emt 0:05:35]} 28. Bxf4 {[%emt 0:03:04]} Nd3 {[%emt 0:00:29]} 29. Re4 {[%emt 0:05:03]} Qd5 {[%emt 0:01:00]} 30. Bg3 {[%emt 0:02:31]} Kg8 {[%emt 0:04:17]} 31. Rd4 {[%emt 0:02:32]} Rb1+ {[%emt 0:00:41]} 32. Kh2 {[%emt 0:00:08]} Qh5+ {[%emt 0:00:41]} 33. Rh4 {[%emt 0:00:23]} Qd1 {[%emt 0:00:23]} 34. Qe8+ {[%emt 0:02:41]} Kg7 {[%emt 0:00:10]} 35. Qe7+ {[%emt 0:00:52]} Kg8 {[%emt 0:00:11]} 36. Qd8+ {[%emt 0:00:29]} Kg7 {[%emt 0:00:48]} 37. Qxc7+ {[%emt 0:00:28]} Kg8 {[%emt 0:00:05]} 38. Qd8+ {[%emt 0:00:56]} Kf7 {[%emt 0:01:38]} 39. Qd7+ {[%emt 0:01:28]} Kf6 {[%emt 0:01:18]} 40. Qd4+ {[%emt 0:00:27]} Kf5 {[%emt 0:01:31]} 41. Qd5+ {[%emt 0:01:15]} Kf6 {[%emt 0:00:03]} 42. Be5+ {[%emt 0:00:34]} Ke7 {[%emt 0:01:31]} 43. Qd6+ {[%emt 0:00:26]} Kf7 {[%emt 0:02:34]} 44. Qd7+ {[%emt 0:00:51]} Kf8 {[%emt 0:00:10]} 45. Bd6+ {[%emt 0:00:11]} 1-0

[Event "Velammal AICF Women GM 2024"]
[Site "Chennai"]
[Date "2024.03.23"]
[Round "8.3"]
[White "Velpula Sarayu"]
[Black "Monnisha G K"]
[Result "1-0"]
[ECO "C78"]
[WhiteElo "2389"]
[BlackElo "2202"]
[Annotator "TA"]
[PlyCount "63"]
[EventDate "2024.03.18"]
[EventType "tourn"]
[EventCountry "IND"]
[SourceTitle "playchess.com"]
[Source "ChessBase"]
[SourceQuality "1"]
[TimeControl "5400+30"]

{[%evp 19,63,27,44,44,59,72,102,95,92,105,100,102,104,79,94,60,169,159,211,150,158,154,159,156,154,150,221,198,195,229,225,214,229,224,390,398,371,395,1535,1223,1174,1243,1243,1252,1231,1218]} 1. e4 {[%emt 0:00:24]} e5 {[%emt 0:00:16]} 2. Nf3 {[%emt 0:00:31]} Nc6 {[%emt 0:00:06]} 3. Bb5 {[%emt 0:00:33]} a6 {[%emt 0:00:06]} 4. Ba4 {[%emt 0:00:27]} Nf6 {[%emt 0:00:06]} 5. O-O {[%emt 0:00:33]} b5 {[%emt 0:00:04]} 6. Bb3 {[%emt 0:00:28]} Bb7 {[%emt 0:00:10]} 7. Re1 {[%emt 0:00:31]} Bc5 {[%emt 0:00:06]} 8. c3 {[%emt 0:00:30]} d6 {[%emt 0:00:10]} 9. d4 {[%emt 0:00:28]} Bb6 {[%emt 0:00:09]} 10. a4 {[%emt 0:00:33]} h6 {[%emt 0:03:30]} 11. Be3 {[%emt 0:02:47]} O-O {[%emt 0:02:20]} 12. d5 {[%emt 0:00:50] aiming for Bxb6.} Ne7 {[%emt 0:02:16]} 13. Bxb6 {[%emt 0:01:20] White is better.} cxb6 {[%emt 0:00:07]} 14. axb5 {[%emt 0:01:34]} axb5 {[%emt 0:00:09]} 15. Na3 {[%emt 0:01:56]} Qd7 {[%emt 0:02:56]} 16. Bc2 {[%emt 0:04:31]} Ng6 {[%emt 0:03:35]} 17. g3 {[%emt 0:01:31]} Qg4 {[%emt 0:11:25]} ({Black should play} 17... Ne8 $1 $14) 18. Nd2 $1 $18 {[%emt 0:25:06] And now Qxg4 would win.} (18. Nxb5 Rxa1 19. Qxa1 Qxf3 $17) 18... Qh3 {[%emt 0:04:58]} (18... Qg5 $16 {was necessary.} 19. Bd3 (19. Nxb5 $2 Rxa1 20. Qxa1 Qxd2 $19) 19... Bc8) 19. Qf3 {[%emt 0:01:27]} (19. Nxb5 Rxa1 (19... Nh4 20. gxh4 Rxa1 21. Qxa1 $16) 20. Qxa1 Nf4 21. gxf4 Ng4 $17) 19... Ba6 {[%emt 0:07:59]} 20. Bd3 {[%emt 0:05:38]} b4 {[%emt 0:03:17]} 21. Bxa6 {[%emt 0:00:42]} (21. cxb4 Bxd3 (21... Nh4 22. gxh4 Qxf3 23. Nxf3 $17) 22. Qxd3 Ng4 $15) 21... Rxa6 {[%emt 0:00:23]} 22. cxb4 {[%emt 0:00:13]} Ra4 {[%emt 0:01:56]} (22... Qd7 $16 23. Nac4 Rfa8) 23. b3 {[%emt 0:08:10][%cal Bb2b3,Bb3b4][%mdl 32]} Rxb4 {[%emt 0:05:37]} 24. Nc2 {[%emt 0:12:25] Prevents Rd4} Rb5 {[%emt 0:00:52] [#]} 25. b4 $1 {[%emt 0:01:29]} Rc8 {[%emt 0:01:29] [#]} 26. Ra2 {[%emt 0:01:20]} Rc3 $2 {[%emt 0:11:51]} (26... Ng4 27. Qg2 Qxg2+ 28. Kxg2 f5) 27. Qxc3 {[%emt 0:04:25]} Nh4 {[%emt 0:00:41]} 28. Ne3 {[%emt 0:01:58] Prevents Qg2+} Nxe4 $2 {[%emt 0:00:54]} (28... Rc5 29. Qxc5 (29. bxc5 Ng4 30. Ndf1 Nf3+ 31. Kh1 Ngxh2 32. Ra8+ Kh7) 29... bxc5 30. gxh4 cxb4) 29. Qd3 {[%emt 0:02:51] White is clearly winning.} f5 {[%emt 0:00:44]} 30. gxh4 {[%emt 0:00:42]} ({Weaker is} 30. Qxb5 Nxd2 31. f3 (31. Kh1 {gets mated.} Ndf3 32. Qe8+ Kh7) 31... Nhxf3+ (31... Ndxf3+ $2 {too greedy.} 32. Kh1 $18) 32. Kf2 Qxh2+ 33. Ng2 Nxe1 34. Kxe1 Ne4 $11) 30... Rxb4 {[%emt 0:00:36]} 31. Nxe4 {[%emt 0:01:20]} Rxe4 {[%emt 0:00:12]} 32. Qf1 {[%emt 0:00:17] Weighted Error Value: White=0.07 (flawless) /Black=0.35.  Mistake:       	---       	Black=5      Inaccurate:     	White=1     	Black=1      OK:         	White=10    	Black=6      Best:        	White=3     	Black=1} 1-0

[Event "Velammal AICF Women GM 2024"]
[Site "Chennai"]
[Date "2024.03.23"]
[Round "8.4"]
[White "Mahalakshmi, M."]
[Black "Franco Valencia, Angela"]
[Result "0-1"]
[ECO "A47"]
[WhiteElo "2242"]
[BlackElo "2095"]
[Annotator "TA"]
[PlyCount "117"]
[EventDate "2024.03.18"]
[EventType "tourn"]
[EventCountry "IND"]
[SourceTitle "playchess.com"]
[Source "ChessBase"]
[SourceQuality "1"]
[TimeControl "5400+30"]

{[%evp 12,117,0,0,8,13,35,33,38,29,29,24,24,0,12,0,10,0,20,0,0,-28,-30,-30,-26,-26,-20,-21,-20,-22,-15,-20,-23,-58,-58,-55,-41,-43,-21,-28,-33,-79,-68,-131,-89,-139,-118,-112,-89,-106,-85,-116,-104,-111,-116,-139,-148,-197,-111,-111,0,-168,-160,-160,-173,-163,-164,-137,-120,-147,-153,-139,-56,-62,-55,-63,-75,-75,-74,-79,-66,-97,-69,-102,-83,-90,0,-207,-81,-431,-97,-236,-236,-241,-248,-249,-241,-231,-243,-415,-415,-477,-461,-525,-466,-484,-479,-424]} 1. d4 {[%emt 0:00:04]} Nf6 {[%emt 0:05:01]} 2. Nf3 {[%emt 0:00:02]} e6 {[%emt 0:00:13]} 3. Bf4 {[%emt 0:01:33]} c5 {[%emt 0:00:57]} 4. c3 {[%emt 0:00:01]} b6 {[%emt 0:00:12]} 5. e3 {[%emt 0:01:38]} Bb7 {[%emt 0:00:05]} 6. Nbd2 {[%emt 0:01:46]} Be7 {[%emt 0:00:18]} 7. h3 {[%emt 0:01:52]} d6 {[%emt 0:01:26]} 8. Bd3 {[%emt 0:03:08]} cxd4 {[%emt 0:00:18]} 9. exd4 {[%emt 0:03:06]} Nbd7 {[%emt 0:00:45] White is slightly better.} 10. O-O {[%emt 0:02:07]} O-O {[%emt 0:00:14]} 11. Qc2 {[%emt 0:06:25]} h6 {[%emt 0:00:53]} 12. Rad1 {[%emt 0:01:11]} Qc7 {[%emt 0:01:33]} 13. Rfe1 {[%emt 0:00:54]} Rfe8 {[%emt 0:00:16]} 14. Qb3 {[%emt 0:06:25]} Bf8 {[%emt 0:01:57]} 15. Bh2 {[%emt 0:01:58]} a6 {[%emt 0:02:26]} 16. Ne4 {[%emt 0:04:52]} Nxe4 {[%emt 0:04:38]} 17. Bxe4 {[%emt 0:01:32]} Bxe4 {[%emt 0:00:14]} 18. Rxe4 {[%emt 0:00:01]} Nf6 {[%emt 0:00:07]} 19. Ree1 {[%emt 0:02:59]} b5 {[%emt 0:00:40][%cal Bb6b5,Bb5b4][%mdl 32]} 20. Nd2 {[%emt 0:04:23]} Qc6 {[%emt 0:01:54]} 21. Qc2 {[%emt 0:02:01]} a5 {[%emt 0:02:17]} 22. Ne4 {[%emt 0:02:31]} Nxe4 {[%emt 0:00:47]} 23. Rxe4 {[%emt 0:00:08][%cal Od4d5]} b4 {[%emt 0:02:15]} 24. Re3 {[%emt 0:00:34]} Rec8 {[%emt 0:07:21]} 25. Bf4 {[%emt 0:01:47][%cal Od4d5]} Qd5 {[%emt 0:01:07]} 26. Qe2 {[%emt 0:04:39]} (26. b3 $15) 26... g6 {[%emt 0:03:35]} 27. a3 {[%emt 0:05:16]} (27. Ra1 $15) 27... bxc3 {[%emt 0:00:29]} 28. bxc3 {[%emt 0:00:58]} (28. Rxc3 $142 Rxc3 29. bxc3) 28... Rab8 {[%emt 0:00:34]} 29. Rf3 {[%emt 0:04:06]} Bg7 {[%emt 0:05:12]} 30. a4 {[%emt 0:05:22]} Rb6 {[%emt 0:03:29]} 31. Qd2 {[%emt 0:03:57]} Kh7 {[%emt 0:08:35]} 32. h4 {[%emt 0:02:27]} h5 {[%emt 0:09:49]} 33. Bg5 {[%emt 0:02:16]} Rb7 {[%emt 0:01:07]} 34. Bf6 {[%emt 0:04:42]} (34. Qc2 $17) 34... Bh6 {[%emt 0:01:08]} ({Black should try} 34... Bxf6 $19 35. Rxf6 Qb3) 35. Qc2 $17 {[%emt 0:04:38]} Bg7 {[%emt 0:03:19]} (35... Kg8 $17 {Hoping for ...Qb3.} 36. Rb1 Bg7) 36. Rb1 $2 {[%emt 0:03:47] Prevents Qb3} (36. Qd2 $1 $11) 36... Bxf6 $19 {[%emt 0:05:56]} 37. Rxf6 {[%emt 0:00:55][%cal Ob1b5]} Kg7 {[%emt 0:00:08]} 38. Rf3 {[%emt 0:00:23]} Rc4 {[%emt 0:00:28]} 39. Rd1 {[%emt 0:07:20]} Rbc7 {[%emt 0:05:55][%cal Oc4d4]} 40. Qd2 {[%emt 0:02:18]} Rxa4 {[%emt 0:08:24]} 41. Qf4 {[%emt 0:00:01]} Ra2 {[%emt 0:04:45] Active counter play!} (41... Kh7 $17 {And now ...Rac4 would win.} 42. Qf6 Rac4) 42. Qf6+ {[%emt 0:02:03]} Kh7 {[%emt 0:00:04]} 43. Rb1 {[%emt 0:00:20] Prevents Qb3} Qa8 {[%emt 0:01:15] Against Rb8} 44. Rb6 {[%emt 0:01:48]} Rd7 {[%emt 0:01:49]} 45. c4 {[%emt 0:02:07][%cal Ob6d6]} Qh8 {[%emt 0:02:29]} 46. Qf4 {[%emt 0:00:35]} (46. Qxh8+ Kxh8 47. c5 Ra1+ 48. Kh2 dxc5 49. dxc5 Kg7 $14) 46... e5 {[%emt 0:02:29]} 47. Qe4 {[%emt 0:00:01] Rb7 is the strong threat.} Ra1+ {[%emt 0:00:33]} (47... exd4 48. Rb5 Qf8 49. Rxh5+ Kg8 50. Qd5 gxh5 (50... Ra1+ $2 51. Kh2 $18) 51. Rg3+ $16 (51. Qxd4 $2 Re7 $19) (51. Qxd4 $2 Re7 $19)) 48. Kh2 {[%emt 0:00:01][%cal Ob6d6] Strongly threatening Rxd6!} Qd8 {[%emt 0:00:17]} (48... exd4 $2 49. Rb5 Qf8 50. Rxh5+ Kg8 51. Qxd4 gxh5 52. Rg3+ (52. Qxa1 Re7 $18) 52... Kh7 53. Rg5 $18 (53. Qxa1 Re7 $18)) (48... Qe8 $1 $17) 49. Rbb3 $2 {[%emt 0:01:28]} (49. Rxd6 $1 $11 Rxd6 50. Rxf7+ Kg8 51. Ra7) 49... a4 {[%emt 0:00:58]} (49... f5 $19 {has better winning chances.} 50. Qc6 Qxh4+ 51. Rh3 Qe7 (51... Qxd4 52. Qxd7+ Kh6 53. Qe7 $18)) 50. Rbc3 $2 {[%emt 0:00:33][%mdl 8192] [#]} (50. Rbd3 $17 {was the crucial defense.}) 50... a3 $2 {[%emt 0:00:29]} 51. Rxa3 {[%emt 0:00:21]} (51. dxe5 $17 {was forced.} dxe5 52. Qxe5 (52. Rxa3 $2 Rxa3 53. Rxa3 Rd4 $17)) 51... f5 {[%emt 0:00:05]} 52. Qc6 {[%emt 0:00:37] [#]} Rxa3 {[%emt 0:02:06]} (52... Qxh4+ 53. Rh3 Qf4+ 54. Rhg3 Qh4+ 55. Rh3 Qf4+ 56. Rhg3 Qh4+ 57. Rh3 $11) 53. Rxa3 {[%emt 0:00:01][%mdl 4096] Endgame. KQR-KQR} Rc7 {[%emt 0:00:28]} (53... exd4 54. Kh3 $11) (53... Qxh4+ 54. Kg1 Qe7 55. g3 $11) 54. Qb6 {[%emt 0:00:58]} Qxh4+ {[%emt 0:00:15]} 55. Kg1 $2 {[%emt 0:00:30]} (55. Rh3 {is the only way for White.} Qf4+ (55... Qxd4 $2 56. Qxc7+ Kh6 57. Qd8 $18) 56. Rg3) 55... Rxc4 {[%emt 0:00:37][%cal Rc4c1]} (55... Qxd4 56. Qxc7+ Kh6 57. Qe7 Qxc4 58. Qf8+ (58. Qxd6 h4 $18) 58... Kg5 59. Rg3+ (59. Qxd6 Qf7 $18) 59... Kf4 60. Qxd6 (60. Qh6+ Ke4 $18)) 56. Qb7+ {[%emt 0:00:24]} Kh6 {[%emt 0:00:05] Black is clearly winning.} 57. Ra1 {[%emt 0:00:26] Prevents Rc1+} Qxd4 {[%emt 0:00:41]} 58. Rf1 {[%emt 0:00:08]} e4 {[%emt 0:00:41]} 59. Qe7 {[%emt 0:00:29] Weighted Error Value: White=0.40/Black=0.27 (precise) .  Loses game:     	White=3     	---        Missed win:     	---       	Black=1      Mistake:       	White=6     	Black=5      Inaccurate:     	White=3     	Black=1      OK:         	White=14    	Black=20     Best:        	White=1     	Black=6} 0-1

[Event "Velammal AICF Women GM 2024"]
[Site "Chennai"]
[Date "2024.03.23"]
[Round "8.5"]
[White "Chitlange Sakshi"]
[Black "Gomes, Mary Ann"]
[Result "1/2-1/2"]
[ECO "A58"]
[WhiteElo "2175"]
[BlackElo "2322"]
[Annotator "TA"]
[PlyCount "82"]
[EventDate "2024.03.18"]
[EventType "tourn"]
[EventCountry "IND"]
[SourceTitle "playchess.com"]
[Source "ChessBase"]
[SourceQuality "1"]
[TimeControl "5400+30"]

{[%evp 9,82,25,61,61,72,33,46,40,61,44,43,53,41,36,30,44,52,29,113,113,115,103,126,118,136,143,159,146,153,114,98,97,140,102,95,102,141,99,266,78,77,51,55,58,70,59,71,64,71,62,148,138,139,38,41,8,23,-21,0,0,0,0,0,0,0,0,0,0,0,0,0,0,0,0,29983]} 1. d4 {[%emt 0:00:04]} Nf6 {[%emt 0:01:52]} 2. c4 {[%emt 0:00:07]} c5 {[%emt 0:00:07]} 3. d5 {[%emt 0:00:06]} b5 {[%emt 0:00:04]} 4. cxb5 {[%emt 0:00:40]} a6 {[%emt 0:00:07]} 5. bxa6 {[%emt 0:00:31]} g6 {[%emt 0:00:08][%cal Of8g7]} 6. Nc3 {[%emt 0:01:14]} Bg7 {[%emt 0:00:12][%cal Oe8g8]} 7. a7 {[%emt 0:00:24]} Rxa7 {[%emt 0:00:05]} 8. e4 {[%emt 0:00:31] Weiß steht etwas besser.} e6 {[%emt 0:02:10]} 9. Nf3 {[%emt 0:01:13]} exd5 {[%emt 0:00:48]} 10. exd5 {[%emt 0:00:06]} O-O {[%emt 0:00:48]} 11. Be2 {[%emt 0:00:35]} d6 {[%emt 0:00:06]} 12. O-O {[%emt 0:00:07]} Re8 {[%emt 0:02:24]} 13. h3 {[%emt 0:16:56]} Qb6 {[%emt 0:04:55] [#]} (13... Na6 $11) 14. Nd2 $1 $16 {[%emt 0:04:48]} Ba6 {[%emt 0:06:20]} 15. Nc4 {[%emt 0:01:41]} Bxc4 {[%emt 0:03:21]} 16. Bxc4 {[%emt 0:00:02]} Ne4 {[%emt 0:00:54]} 17. Nb5 {[%emt 0:11:43]} Rae7 {[%emt 0:13:03]} 18. Qc2 {[%emt 0:07:00]} Na6 {[%emt 0:01:40]} 19. Rb1 {[%emt 0:11:20]} Nb4 {[%emt 0:05:58]} 20. Qb3 {[%emt 0:02:07]} Rb8 {[%emt 0:04:26][%cal Ob4d5]} 21. a3 {[%emt 0:09:02]} Na6 {[%emt 0:01:33]} 22. Qc2 {[%emt 0:02:46]} f5 {[%emt 0:04:54]} 23. Re1 {[%emt 0:07:35] f3 ist eine echte Drohung.} Be5 $2 {[%emt 0:04:15] [#]} (23... Nc7 $16 {war nötig.} 24. a4 Nxb5 25. Bxb5 Qd8) 24. Bd2 $2 {[%emt 0:06:58] Ein starkes Läuferpaar.} (24. f3 $1 $18 {[%cal Rf3e4]}) 24... Nc7 {[%emt 0:07:42]} 25. Nc3 {[%emt 0:03:00]} Nxd2 {[%emt 0:02:03]} 26. Qxd2 {[%emt 0:00:01]} Rbe8 {[%emt 0:04:00][%cal Oe5f4]} 27. Rec1 {[%emt 0:02:19]} Kg7 {[%emt 0:03:42]} 28. b4 {[%emt 0:01:16]} cxb4 {[%emt 0:00:06]} 29. axb4 {[%emt 0:00:33]} Ra8 {[%emt 0:01:04]} ({Günstiger ist} 29... Qd4 $14 30. Qxd4 Bxd4) 30. Ne2 {[%emt 0:01:02]} Ra4 {[%emt 0:02:27]} 31. Rb3 {[%emt 0:02:15]} (31. b5 $16) 31... Ne8 $1 $14 {[%emt 0:04:55][%cal Bc7e8,Be8f6,Bf6e4][%mdl 32]} 32. Kf1 {[%emt 0:05:06]} Nf6 {[%emt 0:00:58]} 33. Qe3 {[%emt 0:00:43] Lässt Ne4 nicht zu} Qb7 {[%emt 0:02:17][%cal Oe5b2] Und ...Bb2! würde nun gewinnen. Die Stellung ist ausgeglichen.} 34. Nf4 {[%emt 0:01:44]} Bxf4 {[%emt 0:03:47]} (34... Bb2 $5 35. Ne6+ $8 Rxe6 36. dxe6 Bxc1 37. Qxc1 Rxb4 $11) 35. Qxf4 {[%emt 0:00:01]} Rxb4 {[%emt 0:00:14]} 36. Qxd6 $1 {[%emt 0:01:06]} Rxb3 {[%emt 0:00:11]} 37. Bxb3 {[%emt 0:00:01]} Ne4 {[%emt 0:00:19]} 38. Qa3 {[%emt 0:00:57]} Nd2+ {[%emt 0:00:32]} 39. Kg1 {[%emt 0:00:01]} Nxb3 {[%emt 0:00:31]} ({Lieber nicht} 39... Qxb3 40. Qxe7+ Kh6 41. Qh4+ Kg7 42. Rc7+ Kh8 43. Qxh7#) 40. Rb1 {[%emt 0:00:24]} Rd7 {[%emt 0:01:25]} 41. Qxb3 {[%emt 0:00:46]} Kf7 $2 {[%emt 0:02:51][%mdl 40960] Gewichteter Fehlerwert: Weiß=0.25 (präzise) /Schwarz=0.19 (sehr präzise) .  Verlustzug:     	---       	Schwarz=2     Gewinn verpasst:   	Weiß=1     	---        Fehler:       	Weiß=1     	Schwarz=2     Ungenau:       	Weiß=4     	Schwarz=2     OK:         	Weiß=9     	Schwarz=18    Bester:       	---       	Schwarz=1     Stark:        	Weiß=2     	Schwarz=1    . Ein unerwartetes Ergebnis.} 1/2-1/2

[Event "Velammal AICF Women GM 2024"]
[Site "Chennai"]
[Date "2024.03.23"]
[Round "8.6"]
[White "Sedina, Elena"]
[Black "Maisuradze, Nino"]
[Result "1/2-1/2"]
[ECO "B22"]
[WhiteElo "2161"]
[BlackElo "2254"]
[Annotator "TA"]
[PlyCount "28"]
[EventDate "2024.03.18"]
[EventType "tourn"]
[EventCountry "IND"]
[SourceTitle "playchess.com"]
[Source "ChessBase"]
[SourceQuality "1"]
[TimeControl "5400+30"]

{[%evp 13,28,26,39,4,6,14,10,0,0,0,0,0,0,0,0,0,0]} 1. e4 {[%emt 0:01:56]} c5 {[%emt 0:00:04]} 2. Nf3 {[%emt 0:00:08]} e6 {[%emt 0:00:41]} 3. c3 {[%emt 0:01:13][%cal Bc2c3,Bc3c4][%mdl 32]} d5 {[%emt 0:03:16]} 4. exd5 {[%emt 0:03:48]} Qxd5 {[%emt 0:03:15]} 5. d4 {[%emt 0:00:09]} Nf6 {[%emt 0:03:01]} 6. Bd3 {[%emt 0:07:49]} Nc6 {[%emt 0:04:25]} 7. O-O {[%emt 0:00:14]} Bd7 {[%emt 0:04:04][%cal Rc5d4]} 8. c4 {[%emt 0:03:46]} Qh5 {[%emt 0:02:49] Die Stellung ist ausgeglichen.} 9. Be2 {[%emt 0:03:31]} cxd4 {[%emt 0:04:00]} 10. Ng5 {[%emt 0:01:43]} Qg6 {[%emt 0:00:00]} 11. Bd3 {[%emt 0:00:27]} Qh5 {[%emt 0:00:00]} 12. Be2 {[%emt 0:00:32]} Qg6 {[%emt 0:00:00] [#] Droht ...e5 und aus.} 13. Bd3 {[%emt 0:00:24]} Qh5 {[%emt 0:00:45]} 14. Be2 {[%emt 0:00:42]} Qg6 {[%emt 0:00:04] Ein ziemlich ruhiges Remis.   Gewichteter Fehlerwert: Weiß=0.06 (makellos) /Schwarz=0.02 (makellos) .  OK:         	Weiß=2     	Schwarz=5     Bester:       	Weiß=2     	Schwarz=1} 1/2-1/2

[Event "Velammal AICF Women GM 2024"]
[Site "Chennai"]
[Date "2024.03.23"]
[Round "9.1"]
[White "Maisuradze, Nino"]
[Black "Bommini Mounika Akshaya"]
[Result "1/2-1/2"]
[ECO "D36"]
[WhiteElo "2254"]
[BlackElo "2134"]
[Annotator "TA"]
[PlyCount "45"]
[EventDate "2024.03.18"]
[EventType "tourn"]
[EventCountry "IND"]
[SourceTitle "playchess.com"]
[Source "ChessBase"]
[SourceQuality "1"]
[TimeControl "5400+30"]

{[%evp 27,45,0,15,0,0,-8,0,0,0,0,0,-8,-4,-14,0,-4,0,-10,0,-9]} 1. d4 {[%emt 0:00:01]} Nf6 {[%emt 0:00:11]} 2. c4 {[%emt 0:00:10]} e6 {[%emt 0:00:09]} 3. Nf3 {[%emt 0:01:01]} d5 {[%emt 0:00:06]} 4. Nc3 {[%emt 0:04:06]} Nbd7 {[%emt 0:00:08]} 5. cxd5 {[%emt 0:01:10]} exd5 {[%emt 0:00:08]} 6. Qc2 {[%emt 0:01:39]} Be7 {[%emt 0:04:32]} 7. Bg5 {[%emt 0:02:34]} h6 {[%emt 0:00:33]} 8. Bh4 {[%emt 0:00:23]} c6 {[%emt 0:01:33]} 9. e3 {[%emt 0:00:08]} O-O {[%emt 0:00:27]} 10. Bd3 {[%emt 0:00:10]} Re8 {[%emt 0:00:08]} 11. O-O {[%emt 0:03:34]} Ne4 {[%emt 0:00:13]} 12. Bxe7 {[%emt 0:00:05]} Qxe7 {[%emt 0:00:12]} 13. Rab1 {[%emt 0:00:37]} Ndf6 {[%emt 0:03:04]} 14. b4 {[%emt 0:01:43]} a6 {[%emt 0:01:43] The position is equal.} 15. a4 {[%emt 0:00:08]} Bf5 {[%emt 0:05:15]} 16. Ne5 {[%emt 0:26:27]} Nxc3 {[%emt 0:09:08]} 17. Qxc3 {[%emt 0:00:11]} Bxd3 {[%emt 0:02:14]} 18. Qxd3 {[%emt 0:07:25]} Ne4 {[%emt 0:02:30]} 19. Qc2 {[%emt 0:09:15]} Nd6 {[%emt 0:00:39]} 20. Qc3 {[%emt 0:12:37]} Ne4 {[%emt 0:00:55]} 21. Qc2 {[%emt 0:00:14]} Nd6 {[%emt 0:00:08]} 22. Qc3 {[%emt 0:00:25]} Ne4 {[%emt 0:01:59]} 23. Qc2 {[%emt 0:00:13] Not much happened in this game.   Weighted Error Value: White=0.06 (flawless) /Black=0.05 (flawless) .  OK:         	White=3     	Black=4} 1/2-1/2